[Event "US Masters 2022"]
[Site "Charlotte"]
[Date "2022.11.25"]
[Round "4.5"]
[White "Neef, Maximilian"]
[Black "Yoo, Christopher Woojin"]
[Result "1/2-1/2"]
[ECO "A34"]
[WhiteElo "2481"]
[BlackElo "2573"]
[Annotator "TA"]
[PlyCount "195"]
[EventDate "2022.11.23"]
[EventType "swiss"]
[EventCountry "USA"]
[SourceTitle "playchess.com"]
[Source "ChessBase"]
[SourceQuality "1"]
[TimeControl "5400+30"]

{[%evp 48,195,83,74,96,19,29,0,0,3,29,36,35,0,29,29,29,10,60,61,61,62,74,37,62,62,61,43,43,37,37,29,69,69,69,69,69,69,69,69,69,69,69,69,69,69,69,69,69,62,62,62,69,17,17,17,17,17,17,17,17,17,17,17,17,17,26,17,17,17,17,17,17,11,17,17,17,17,17,11,11,8,8,8,8,8,8,8,8,8,8,8,8,8,8,8,8,8,8,8,8,8,8,8,8,8,8,8,8,7,7,7,7,7,7,7,7,7,7,7,7,7,7,0,0,0,7,7,7,7,7,0,8,8,8,8,8,8,8,8,8,8,8,8,8,8,8,8,17,0]} 1. Nf3 {[%emt 0:00:03]} Nf6 {[%emt 0:00:47]} 2. g3 {[%emt 0:00:07]} c5 {[%emt 0:02:39]} 3. Bg2 {[%emt 0:01:37]} g6 {[%emt 0:00:09]} 4. c4 {[%emt 0:00:42]} Bg7 {[%emt 0:00:30]} 5. Nc3 {[%emt 0:00:19]} d5 {[%emt 0:06:21]} 6. cxd5 {[%emt 0:01:13]} Nxd5 {[%emt 0:00:06]} 7. Qa4+ {[%emt 0:03:53]} Nc6 {[%emt 0:01:52]} 8. Qc4 {[%emt 0:01:57]} Ndb4 {[%emt 0:06:00]} 9. O-O {[%emt 0:00:55]} Qa5 {[%emt 0:03:42]} 10. a3 {[%emt 0:14:29]} Nc2 {[%emt 0:02:53]} 11. Rb1 {[%emt 0:03:28]} Be6 {[%emt 0:07:18]} 12. Qh4 {[%emt 0:06:57]} Bb3 {[%emt 0:05:51]} 13. d3 {[%emt 0:03:47]} N2d4 {[%emt 0:01:21]} 14. Nxd4 {[%emt 0:09:18]} Nxd4 {[%emt 0:04:43]} 15. Be3 {[%emt 0:08:08]} Nf5 {[%emt 0:03:36]} 16. Qe4 {[%emt 0:01:15]} O-O {[%emt 0:02:31]} 17. Bd2 {[%emt 0:03:01]} Rfe8 {[%emt 0:10:17]} 18. Qxb7 {[%emt 0:02:55]} Rab8 {[%emt 0:05:17]} 19. Ne4 {[%emt 0:00:57]} Rxb7 {[%emt 0:00:34]} 20. Bxa5 {[%emt 0:03:10]} Rb5 {[%emt 0:00:05]} 21. Bc3 {[%emt 0:05:43]} Nd4 {[%emt 0:00:22]} 22. Rfe1 {[%emt 0:02:22]} Reb8 {[%emt 0:06:27]} 23. e3 {[%emt 0:04:34]} Ne6 {[%emt 0:01:09]} 24. Rbc1 {[%emt 0:01:17]} Bxc3 {[%emt 0:01:14]} 25. Rxc3 {[%emt 0:03:58]} Ba2 {[%emt 0:01:10] [#]} 26. Rec1 {[%emt 0:09:35]} (26. b4 $1 $16) 26... Rxb2 $11 {[%emt 0:01:13]} 27. Nxc5 {[%emt 0:00:05]} Nxc5 {[%emt 0:01:35]} 28. Rxc5 {[%emt 0:00:06]} Rd2 {[%emt 0:01:10]} 29. Rc8+ {[%emt 0:01:48]} Rxc8 {[%emt 0:00:10]} 30. Rxc8+ {[%emt 0:00:05]} Kg7 {[%emt 0:00:04]} 31. Bf1 {[%emt 0:01:12]} a5 $1 {[%emt 0:02:14]} 32. a4 {[%emt 0:01:40]} (32. Ra8 $5 {[%cal Ra8a5]}) 32... Bb3 {[%emt 0:03:29]} (32... Bd5 $1 $11) 33. Rc5 $14 {[%emt 0:00:29]} Bxa4 {[%emt 0:00:04]} 34. Rxa5 {[%emt 0:00:05]} Bc6 {[%emt 0:00:02]} 35. Ra1 {[%emt 0:02:40]} Bf3 {[%emt 0:00:43]} 36. d4 {[%emt 0:00:48]} g5 {[%emt 0:00:05]} 37. h3 {[%emt 0:00:09]} h5 {[%emt 0:00:48]} 38. Bg2 {[%emt 0:00:04]} g4 {[%emt 0:00:17]} 39. hxg4 {[%emt 0:01:08]} hxg4 {[%emt 0:00:29]} 40. Bxf3 {[%emt 0:00:12]} gxf3 {[%emt 0:00:04]} 41. g4 {[%emt 0:00:07]} Kg6 $1 {[%emt 0:01:00]} 42. Ra5 {[%emt 0:01:47]} e6 $1 {[%emt 0:00:03]} 43. Re5 $1 {[%emt 0:00:48]} Ra2 {[%emt 0:00:08]} 44. Re4 {[%emt 0:00:28]} Kg5 {[%emt 0:00:04]} 45. Rf4 {[%emt 0:00:11]} Ra7 $1 {[%emt 0:00:03]} 46. Kh2 {[%emt 0:01:11]} Kh4 {[%emt 0:00:04]} 47. Rxf3 {[%emt 0:01:03]} Kxg4 {[%emt 0:00:05]} 48. Rf4+ {[%emt 0:00:16]} Kg5 {[%emt 0:00:04]} 49. Kg3 {[%emt 0:00:05]} Rd7 {[%emt 0:00:34]} 50. Kf3 {[%emt 0:00:20]} ({White should play} 50. Re4 $14) 50... f5 $11 {[%emt 0:00:48]} 51. Kg3 {[%emt 0:00:19]} Kf6 {[%emt 0:00:14]} 52. Rh4 {[%emt 0:00:17]} e5 {[%emt 0:00:04]} 53. dxe5+ {[%emt 0:00:49]} Kxe5 {[%emt 0:00:05]} 54. Ra4 {[%emt 0:00:12]} Rg7+ {[%emt 0:00:13]} 55. Kf3 {[%emt 0:00:05]} Rg8 {[%emt 0:00:05]} 56. Ra5+ {[%emt 0:00:38]} Kf6 {[%emt 0:00:13]} 57. Ke2 {[%emt 0:00:08]} Rg2 {[%emt 0:00:37]} 58. Kf1 {[%emt 0:00:14]} Rh2 {[%emt 0:00:16]} 59. Kg1 {[%emt 0:00:30]} Rh8 {[%emt 0:00:08]} 60. f3 {[%emt 0:00:18]} Rg8+ {[%emt 0:01:59]} 61. Kf2 {[%emt 0:00:05]} Ke6 {[%emt 0:00:07]} 62. Ra6+ {[%emt 0:00:19]} Ke7 {[%emt 0:00:09]} 63. Ke2 {[%emt 0:00:19]} Rb8 {[%emt 0:00:58]} 64. f4 {[%emt 0:01:38]} Rd8 {[%emt 0:00:17]} 65. Kf2 {[%emt 0:00:08]} Rg8 {[%emt 0:00:23]} 66. Kf3 {[%emt 0:00:04]} Kf7 {[%emt 0:00:07]} 67. Ke2 {[%emt 0:00:08]} Rd8 {[%emt 0:00:10]} 68. Ra4 {[%emt 0:00:06]} Ke6 {[%emt 0:00:20]} 69. Rb4 {[%emt 0:00:15]} Rd7 {[%emt 0:01:53]} 70. Rb6+ {[%emt 0:00:10]} Kf7 {[%emt 0:00:04]} 71. Rb3 {[%emt 0:00:32]} Rd8 {[%emt 0:00:29]} 72. Rd3 {[%emt 0:00:05]} Rg8 {[%emt 0:00:11]} 73. Rd6 {[%emt 0:00:17]} Ke7 {[%emt 0:00:03]} 74. Rd5 {[%emt 0:00:25]} Ke6 {[%emt 0:00:15]} 75. Re5+ {[%emt 0:00:03]} Kf6 {[%emt 0:00:02]} 76. Kd3 {[%emt 0:00:07]} Rd8+ {[%emt 0:00:19]} 77. Kc4 {[%emt 0:00:12]} Rd1 {[%emt 0:00:14]} 78. Rd5 {[%emt 0:00:19]} Rc1+ {[%emt 0:00:17]} 79. Kd4 {[%emt 0:00:06]} Rd1+ {[%emt 0:00:16]} 80. Kc5 {[%emt 0:00:06]} Rc1+ {[%emt 0:00:02]} 81. Kd6 {[%emt 0:01:00]} Rc3 {[%emt 0:00:15]} 82. Re5 {[%emt 0:00:04]} Ra3 {[%emt 0:00:35]} 83. Re6+ {[%emt 0:00:17]} Kf7 {[%emt 0:00:06]} 84. Re7+ {[%emt 0:00:30]} Kf6 {[%emt 0:00:04]} 85. Re8 {[%emt 0:00:15]} Kf7 {[%emt 0:00:20]} 86. Re5 {[%emt 0:00:22]} Kf6 {[%emt 0:00:03]} 87. Kc6 {[%emt 0:00:07]} Ra6+ {[%emt 0:00:15]} 88. Kb5 {[%emt 0:00:10]} Ra1 {[%emt 0:00:20]} 89. Kc4 {[%emt 0:00:14]} Rd1 {[%emt 0:00:17]} 90. Rb5 {[%emt 0:00:32]} Rc1+ {[%emt 0:00:07]} 91. Kd3 {[%emt 0:00:07]} Rd1+ {[%emt 0:00:03]} 92. Kc2 {[%emt 0:00:04]} Rd6 {[%emt 0:00:41]} 93. Kc3 {[%emt 0:00:21]} Rc6+ {[%emt 0:02:40]} 94. Kd4 {[%emt 0:00:04]} Rd6+ {[%emt 0:00:03]} 95. Rd5 {[%emt 0:00:12]} Ra6 {[%emt 0:00:02]} 96. Rc5 {[%emt 0:00:05]} Rd6+ {[%emt 0:00:07]} 97. Kc4 {[%emt 0:00:06]} Re6 {[%emt 0:00:06]} 98. Kd4 {[%emt 0:01:25]} 1/2-1/2

[Event "US Masters 2022"]
[Site "Charlotte"]
[Date "2022.11.25"]
[Round "4.6"]
[White "Ngo, Bach"]
[Black "Hambleton, Aman"]
[Result "1/2-1/2"]
[ECO "E12"]
[WhiteElo "2275"]
[BlackElo "2437"]
[Annotator "TA"]
[PlyCount "93"]
[EventDate "2022.11.23"]
[EventType "swiss"]
[EventCountry "USA"]
[SourceTitle "playchess.com"]
[Source "ChessBase"]
[SourceQuality "1"]
[TimeControl "5400+30"]

{[%evp 10,93,5,8,9,8,15,14,14,12,14,10,10,12,16,14,15,12,11,16,14,12,14,11,19,15,17,12,23,8,8,4,11,0,0,-33,-32,-32,-34,-39,-37,-66,-61,-84,-47,-72,-89,-80,-75,-94,-84,-94,0,0,0,0,0,0,0,0,0,0,0,0,0,0,0,0,0,0,0,0,0,0,0,0,0,0,0,0,0,0,0,0,0,0]} 1. d4 {[%emt 0:06:31]} Nf6 {[%emt 0:00:22]} 2. Nf3 {[%emt 0:00:08]} e6 {[%emt 0:01:07]} 3. c4 {[%emt 0:00:18]} b6 {[%emt 0:00:25]} 4. a3 {[%emt 0:00:55]} Bb7 {[%emt 0:01:09]} 5. Nc3 {[%emt 0:00:11]} d5 {[%emt 0:13:52]} 6. Bf4 {[%emt 0:02:00]} Bd6 {[%emt 0:10:59] E12: Queen's Indian: Unusual White 4th moves, 4 a3, 4 Nc3 Bb7 5 a3 and 4 Nc3 Bb7 .} 7. Bxd6 {[%emt 0:01:57]} cxd6 {[%emt 0:01:02]} 8. e3 {[%emt 0:00:44]} O-O {[%emt 0:08:43]} 9. cxd5 {[%emt 0:01:45]} Nxd5 {[%emt 0:00:17]} 10. Nxd5 {[%emt 0:00:24]} Bxd5 {[%emt 0:00:10]} 11. Bd3 {[%emt 0:00:17]} Nd7 {[%emt 0:01:11]} 12. O-O {[%emt 0:00:43]} Bb7 {[%emt 0:01:43]} 13. Qe2 {[%emt 0:00:22]} Nf6 {[%emt 0:04:43]} 14. e4 {[%emt 0:03:55]} Rc8 {[%emt 0:12:46]} 15. Rfe1 {[%emt 0:01:14] [#]} Rc7 $146 {[%emt 0:02:16]} ({Predecessor:} 15... h6 16. Rad1 Qd7 17. Nd2 Rfd8 18. Nb1 Qa4 19. Qe3 Qb3 20. Qd2 Qa4 21. Qe3 Qb3 22. Qd2 {½-½ (22) Kolanek,R (2264)-Kulakiewicz,M (2283) ICCF email 2018}) 16. Qe3 {[%emt 0:03:25]} Nd7 {[%emt 0:20:07]} 17. Rad1 {[%emt 0:02:51]} Qe7 {[%emt 0:01:16]} 18. Nd2 {[%emt 0:09:40]} a6 {[%emt 0:08:19]} 19. e5 {[%emt 0:10:49]} dxe5 {[%emt 0:05:25]} 20. dxe5 {[%emt 0:00:12]} b5 {[%emt 0:00:24] Against Nc4} 21. f4 {[%emt 0:15:49]} Nc5 {[%emt 0:01:51]} 22. Ne4 {[%emt 0:01:54]} Bxe4 {[%emt 0:01:01]} 23. Bxe4 {[%emt 0:00:08]} Nxe4 {[%emt 0:00:27]} 24. Qxe4 {[%emt 0:00:05]} Rd8 {[%emt 0:00:50]} 25. b4 {[%emt 0:05:13][%cal Od1d6]} g6 {[%emt 0:00:22]} 26. Qe3 {[%emt 0:04:10] Against Rc3} Rc6 {[%emt 0:01:58]} 27. Rxd8+ {[%emt 0:03:09]} Qxd8 $15 {[%emt 0:00:03][%mdl 4096] Endgame KQR-KQR} 28. Rc1 {[%emt 0:00:14] [#]} Rc4 {[%emt 0:01:02]} 29. Kf2 {[%emt 0:07:16]} Qh4+ {[%emt 0:00:36]} 30. Kf3 {[%emt 0:00:12] [#]} Qxh2 {[%emt 0:00:30]} (30... Rxc1 $1 $17 31. Qxc1 Qxh2) 31. Rxc4 $11 {[%emt 0:00:51] White wants to mate with Rc8+. The position is equal.} bxc4 $17 {[%emt 0:00:30] KQ-KQ} 32. Qd4 {[%emt 0:00:14]} Qh5+ {[%emt 0:00:31]} 33. Kf2 {[%emt 0:00:53]} Qh4+ {[%emt 0:00:22]} 34. Kf3 {[%emt 0:00:17]} Qh5+ {[%emt 0:00:35]} 35. Ke3 {[%emt 0:03:26]} Qh4 {[%emt 0:00:33]} 36. Kf3 {[%emt 0:01:28] Prevents Qg3+.} Kg7 {[%emt 0:00:30]} 37. Qxc4 {[%emt 0:00:36]} g5 {[%emt 0:00:09] Hoping for ...g4+.} 38. Qe4 {[%emt 0:03:43]} ({But not} 38. Qxa6 Qxf4+ 39. Ke2 Qxe5+ 40. Kf2 h5 $17) 38... g4+ {[%emt 0:00:47]} 39. Ke2 {[%emt 0:00:07]} Qg3 {[%emt 0:00:24]} 40. a4 {[%emt 0:00:12]} Qb3 {[%emt 0:00:40]} 41. f5 {[%emt 0:01:48]} exf5 {[%emt 0:00:30]} 42. Qxf5 {[%emt 0:00:09]} Qc4+ {[%emt 0:00:31]} 43. Kf2 {[%emt 0:00:47]} Qxb4 {[%emt 0:00:29]} 44. Qg5+ {[%emt 0:00:44]} Kf8 {[%emt 0:00:23]} 45. Qd8+ {[%emt 0:00:47]} Kg7 {[%emt 0:00:07] aiming for ...Qf4+.} 46. Qg5+ {[%emt 0:00:39]} Kf8 {[%emt 0:00:12]} 47. Qd8+ {[%emt 0:00:41] Weighted Error Value: White=0.05 (flawless) /Black=0.06 (flawless)} 1/2-1/2

[Event "US Masters 2022"]
[Site "Charlotte"]
[Date "2022.11.25"]
[Round "4.7"]
[White "Gazik, Viktor"]
[Black "Raja Harshit"]
[Result "1/2-1/2"]
[ECO "B51"]
[WhiteElo "2564"]
[BlackElo "2461"]
[Annotator "TA"]
[PlyCount "33"]
[EventDate "2022.11.23"]
[EventType "swiss"]
[EventCountry "USA"]
[SourceTitle "playchess.com"]
[Source "ChessBase"]
[SourceQuality "1"]
[TimeControl "5400+30"]

{[%evp 9,33,18,22,16,14,24,16,-6,21,13,18,5,26,19,22,17,33,34,43,38,39,0,6,7,0,-2]} 1. e4 {[%emt 0:06:01]} c5 {[%emt 0:00:24]} 2. Nf3 {[%emt 0:00:36]} d6 {[%emt 0:00:09]} 3. Bb5+ {[%emt 0:00:05]} Nd7 {[%emt 0:00:24]} 4. O-O {[%emt 0:05:24]} a6 {[%emt 0:00:36]} 5. Bd3 {[%emt 0:07:19]} Ngf6 {[%emt 0:00:08]} 6. c3 {[%emt 0:01:12] B51: Sicilian: Moscow Variation (3 Bb5+) without 3...Bd7.} b5 {[%emt 0:02:55]} 7. Bc2 {[%emt 0:03:00]} Bb7 {[%emt 0:06:13]} 8. d3 {[%emt 0:06:05][%cal Bd2d3,Bd3d4][%mdl 32]} e5 {[%emt 0:03:21]} 9. Re1 {[%emt 0:00:52]} g6 {[%emt 0:03:51]} 10. d4 {[%emt 0:15:40]} Bg7 {[%emt 0:03:41] [#]} 11. d5 $146 {[%emt 0:05:18]} ({Predecessor:} 11. dxe5 dxe5 12. Qd6 Rc8 13. Bg5 Rc6 14. Qd2 h6 15. Be3 Qe7 16. Qe2 O-O 17. Nbd2 {0-1 (43) Savic,D (2225)-Nadj Hedjesi,B (2371) Senta 2007}) 11... O-O {[%emt 0:02:28]} 12. b3 {[%emt 0:00:20]} h6 {[%emt 0:05:07]} 13. a4 {[%emt 0:00:45]} Nb6 {[%emt 0:10:10]} 14. Bd3 {[%emt 0:06:35]} Qd7 {[%emt 0:15:57][%cal Of6e4]} 15. Na3 {[%emt 0:06:08][%cal Ra4b5]} Nxe4 {[%emt 0:02:08]} 16. Bxe4 {[%emt 0:11:42]} f5 {[%emt 0:00:06]} 17. c4 {[%emt 0:02:42] Weighted Error Value: White=0.05 (flawless) /Black=0.06 (flawless)} 1/2-1/2

[Event "US Masters 2022"]
[Site "Charlotte"]
[Date "2022.11.25"]
[Round "4.8"]
[White "Cordova, Emilio"]
[Black "Mardov, Dimitar"]
[Result "1-0"]
[ECO "A17"]
[WhiteElo "2561"]
[BlackElo "2432"]
[Annotator "TA"]
[PlyCount "99"]
[EventDate "2022.11.23"]
[EventType "swiss"]
[EventCountry "USA"]
[SourceTitle "playchess.com"]
[Source "ChessBase"]
[SourceQuality "1"]
[TimeControl "5400+30"]

{[%evp 9,99,9,1,6,12,0,0,0,-14,-6,13,0,10,11,10,10,24,9,26,23,27,27,22,18,26,17,29,24,21,17,30,27,56,54,64,62,55,52,65,33,46,22,72,83,73,54,116,106,118,129,125,127,125,118,119,114,129,107,107,114,114,111,124,106,114,114,114,114,114,114,114,114,120,114,153,93,115,0,154,118,107,107,122,125,122,112,121,117,542,540,514,507]} 1. Nf3 {[%emt 0:05:06]} d5 {[%emt 0:00:07]} 2. e3 {[%emt 0:00:08]} Nf6 {[%emt 0:00:29]} 3. c4 {[%emt 0:00:30]} e6 {[%emt 0:00:43]} 4. Nc3 {[%emt 0:01:35][%cal Bb1c3,Bc3e2,Be2g3][%mdl 32]} b6 {[%emt 0:02:10]} 5. b3 {[%emt 0:00:18]} Bb7 {[%emt 0:00:18]} 6. Bb2 {[%emt 0:00:05] A17: English Opening: 1...Nf6 with ...Bb4.} Be7 {[%emt 0:00:39]} 7. cxd5 {[%emt 0:01:54]} exd5 {[%emt 0:00:23]} 8. Ne2 $5 {[%emt 0:00:46][%mdl 4] The position is equal. A promising side line.} O-O {[%emt 0:03:35] [#]} 9. Ng3 $146 {[%emt 0:00:20]} ({Predecessor:} 9. g3 c5 10. Bg2 Nc6 11. O-O b5 12. Nf4 Qd6 13. Rc1 g6 14. Qc2 Rfd8 15. Rfe1 {½-½ (79) Leko,P (2670)-Boruchovsky,A (2533) Douglas 2019}) 9... c5 {[%emt 0:04:36]} 10. Be2 {[%emt 0:00:06]} Nc6 {[%emt 0:02:17]} 11. O-O {[%emt 0:15:54]} Ne4 {[%emt 0:06:02]} 12. d4 {[%emt 0:02:07]} Rc8 {[%emt 0:10:15]} 13. Rc1 {[%emt 0:05:11]} (13. dxc5 {with more complications.} Nxg3 14. hxg3 bxc5 15. Qc2) 13... Nxg3 {[%emt 0:04:54]} 14. hxg3 {[%emt 0:00:31]} Qd7 {[%emt 0:04:47]} 15. Qd2 {[%emt 0:05:31]} Rfd8 {[%emt 0:02:42]} 16. Rfd1 {[%emt 0:01:12]} Qe6 {[%emt 0:02:03]} 17. Bc3 {[%emt 0:13:07]} h6 {[%emt 0:08:56]} 18. Qb2 {[%emt 0:03:43]} Bf8 {[%emt 0:01:03]} 19. Qb1 {[%emt 0:02:35]} a6 {[%emt 0:06:30]} 20. Bb2 {[%emt 0:03:33]} Be7 {[%emt 0:05:31]} 21. Ba1 {[%emt 0:09:12]} Rc7 {[%emt 0:03:04]} 22. Rd2 {[%emt 0:03:09]} Bf8 {[%emt 0:05:18]} 23. Bd3 {[%emt 0:05:15]} Bc8 {[%emt 0:02:38]} 24. dxc5 {[%emt 0:04:02]} bxc5 {[%emt 0:00:26]} 25. Qb2 {[%emt 0:00:09][%cal Oc1c5]} (25. Rcd1 {simplifies} Be7 26. Nh4 Bxh4 27. gxh4 d4 28. Be4) 25... Qg4 {[%emt 0:04:56]} (25... Qe7 $11) 26. Bb1 $16 {[%emt 0:01:13]} Ne7 {[%emt 0:06:40]} 27. Rc4 {[%emt 0:03:11]} dxc4 {[%emt 0:03:57]} (27... Qe6 $1 $14) 28. Rxd8 {[%emt 0:00:14] Ne5 is the strong threat.} Rd7 {[%emt 0:01:02] [#]} 29. Qc2 $1 {[%emt 0:02:13][%csl Gb1][%cal Rc2h7]} Qg6 {[%emt 0:04:40] Prevents Qh7+.} 30. Qxg6 {[%emt 0:01:55] Dancing on a razor blade.} (30. Qxc4 $2 {perishes.} Qxb1+ 31. Qf1 Qxf1+ 32. Kxf1 Rxd8 $19) 30... Nxg6 {[%emt 0:00:17]} 31. Rxd7 {[%emt 0:00:17] White is more active.} ({Worse is} 31. Rxc8 Rd1+ 32. Kh2 Rxb1 $15) 31... Bxd7 {[%emt 0:00:05]} 32. bxc4 {[%emt 0:00:06]} Bd6 {[%emt 0:01:07]} 33. Kf1 {[%emt 0:00:26]} Be6 {[%emt 0:00:41]} 34. Bd3 {[%emt 0:00:40]} f5 {[%emt 0:00:25]} 35. Ke2 {[%emt 0:00:40]} Kf7 {[%emt 0:00:19]} 36. a3 {[%emt 0:00:59]} Bc7 {[%emt 0:01:35]} 37. Bc3 {[%emt 0:00:06]} Bd6 {[%emt 0:00:50]} 38. Kd2 {[%emt 0:00:13]} Bc7 {[%emt 0:00:15]} 39. Kc2 {[%emt 0:00:12]} Bd7 {[%emt 0:00:56]} 40. Kb3 {[%emt 0:00:50]} Bb8 {[%emt 0:01:15]} 41. Bc2 {[%emt 0:05:12]} Bc7 {[%emt 0:00:44]} 42. Bd1 {[%emt 0:02:33]} (42. e4 $142) 42... Bc6 {[%emt 0:00:26]} 43. Bc2 {[%emt 0:02:00]} Bd7 {[%emt 0:00:18]} 44. Kb2 {[%emt 0:00:40]} Be6 {[%emt 0:00:32]} 45. Bd3 {[%emt 0:01:04]} Bd7 {[%emt 0:00:12]} 46. e4 {[%emt 0:01:38]} f4 {[%emt 0:00:52]} 47. gxf4 {[%emt 0:00:05]} Nxf4 {[%emt 0:00:10] [#]} 48. Bf1 {[%emt 0:00:03]} Bc6 $2 {[%emt 0:02:07][%mdl 8192] [#]} (48... Bc8 $16 {is tougher.}) 49. Be5 $1 $18 {[%emt 0:00:20]} Ne6 {[%emt 0:00:40]} 50. Bxc7 {[%emt 0:00:06] Weighted Error Value: White=0.07 (flawless) /Black=0.24 (precise)} 1-0

[Event "US Masters 2022"]
[Site "Charlotte"]
[Date "2022.11.25"]
[Round "4.9"]
[White "Korley, Kassa"]
[Black "Ramirez, Alejandro"]
[Result "0-1"]
[ECO "A05"]
[WhiteElo "2451"]
[BlackElo "2561"]
[Annotator "TA"]
[PlyCount "80"]
[EventDate "2022.11.23"]
[EventType "swiss"]
[EventCountry "USA"]
[SourceTitle "playchess.com"]
[Source "ChessBase"]
[SourceQuality "1"]
[TimeControl "5400+30"]

{[%evp 11,80,10,22,12,10,0,10,0,4,0,3,9,15,0,0,-7,-6,-9,0,-9,0,0,0,0,0,0,0,0,0,0,0,0,0,0,0,0,0,-60,-51,-58,-70,-56,0,0,0,-43,-43,-40,-24,-32,-10,-102,-96,-103,-95,-102,-97,-308,-212,-204,-208,-200,-169,-211,-71,-866,-866,-826,-776,-624,-550]} 1. Nf3 {[%emt 0:02:28]} Nf6 {[%emt 0:02:13]} 2. g3 {[%emt 0:00:31]} b5 {[%emt 0:00:18]} 3. Bg2 {[%emt 0:00:08]} Bb7 {[%emt 0:00:02]} 4. O-O {[%emt 0:00:08]} e6 {[%emt 0:00:06]} 5. d3 {[%emt 0:00:58]} Be7 {[%emt 0:00:08]} 6. e4 {[%emt 0:02:41]} d6 {[%emt 0:00:20]} 7. Re1 {[%emt 0:02:06] A05: Réti Opening: 1 Nf3 Nf6.} O-O {[%emt 0:01:06]} 8. a4 {[%emt 0:02:16]} b4 {[%emt 0:02:19]} 9. Nbd2 {[%emt 0:05:45] The position is equal.} c5 {[%emt 0:03:18]} 10. e5 {[%emt 0:04:06] [#]} Nd5 $146 {[%emt 0:01:16]} ({Predecessor:} 10... dxe5 11. Nxe5 Bxg2 12. Kxg2 Qd5+ 13. Qf3 Qxf3+ 14. Ndxf3 Nd5 15. Bd2 Na6 16. Nc4 Rfd8 {1-0 (78) Vitiugov,N (2722)-Brodsky,D (2455) Chess.com INT 2020}) 11. exd6 {[%emt 0:04:05]} Bxd6 {[%emt 0:00:33]} 12. c4 {[%emt 0:05:27]} Nf6 {[%emt 0:04:42]} 13. Nb3 {[%emt 0:01:11]} Nbd7 {[%emt 0:01:01]} 14. d4 {[%emt 0:06:20]} Qc7 {[%emt 0:05:56]} (14... cxd4 {seems wilder.} 15. Nfxd4 Bxg2 16. Kxg2 Qc7) 15. Be3 {[%emt 0:01:48]} Rad8 {[%emt 0:06:30]} 16. Qe2 {[%emt 0:00:07]} cxd4 {[%emt 0:04:30]} 17. Nfxd4 {[%emt 0:03:17]} Bxg2 {[%emt 0:01:12]} 18. Kxg2 {[%emt 0:00:04]} a6 {[%emt 0:01:43]} 19. Rac1 {[%emt 0:02:27][%cal Oc4c5]} Nc5 {[%emt 0:00:22] ...e5 is the strong threat.} 20. Nxc5 {[%emt 0:05:43]} Bxc5 {[%emt 0:00:03]} 21. Nb3 {[%emt 0:05:02]} Bxe3 {[%emt 0:03:03]} 22. Qxe3 {[%emt 0:00:04]} Rd7 {[%emt 0:00:28]} 23. a5 {[%emt 0:10:41]} Rfd8 {[%emt 0:02:01]} 24. Qf3 {[%emt 0:04:28]} ({White should try} 24. Qb6 $11) 24... h5 $15 {[%emt 0:04:42] aiming for ...Ng4.} 25. c5 {[%emt 0:02:17]} Rd3 {[%emt 0:01:33] Inhibits Red1.} 26. Re3 {[%emt 0:00:04]} Rxe3 {[%emt 0:00:04]} ({Better is} 26... R3d5 $1 $15 27. h3 h4) 27. Qxe3 $11 {[%emt 0:01:13]} (27. fxe3 $2 Rd3 28. Nd4 (28. Qa8+ $2 Kh7 $19) 28... Rd2+ 29. Kh1 Rxb2 30. Qa8+ Kh7 31. Qxa6 Ng4 $19) 27... Qc6+ {[%emt 0:00:35]} 28. f3 {[%emt 0:01:50]} Nd5 $36 {[%emt 0:09:03][%mdl 2048] Black has some pressure.} 29. Qe2 {[%emt 0:00:03]} Qa4 {[%emt 0:01:01]} 30. Nd4 {[%emt 0:02:17]} Ne7 {[%emt 0:07:01]} 31. Nxe6 {[%emt 0:04:10]} fxe6 $17 {[%emt 0:00:41]} 32. Qxe6+ {[%emt 0:00:03]} Kf8 {[%emt 0:00:02]} 33. c6 {[%emt 0:13:01]} Qxa5 {[%emt 0:01:01] And now ...Rd2+ would win.} (33... Rd2+ 34. Kh3 Rc2 35. Re1 Qxc6 36. Qxe7+ Kg8 37. Qd8+ (37. Qxb4 Qxf3 38. Qe4 Qxe4 $14) 37... Kh7 38. Qd3+ Kh8 39. Qf5 $18) 34. Rc4 $2 {[%emt 0:00:34]} (34. c7 $17 {only move.} Rc8 35. Qd6) 34... Qd5 {[%emt 0:00:56]} 35. c7 {[%emt 0:00:08] [#]} (35. Rf4+ Ke8 36. Qxd5 Rxd5 $19) 35... Rc8 {[%emt 0:00:06]} (35... Qxe6 $2 36. cxd8=Q+ (36. cxd8=R+ $2 Kf7 $19) 36... Kf7 37. Re4 $18 (37. Rxb4 $2 Qe2+ 38. Kg1 Qe1+ 39. Kg2 Qxb4 $19)) (35... Qd2+ 36. Kh3 Rc8 37. Rf4+ (37. Qxa6 $2 Qd7+ 38. Kg2 Rxc7 $19) 37... Ke8 38. Qf7+ (38. Qxa6 $2 Qd7+ 39. g4 Rxc7 $19) 38... Kd7 39. Qxg7 $18 (39. Re4 Qg5 $11)) 36. Qxa6 {[%emt 0:00:45] [#]} Kg8 $1 {[%emt 0:08:10]} (36... Qd2+ 37. Kf1 Qd7 38. Rf4+ (38. Rxb4 $2 Qd1+ 39. Kg2 Qd2+ 40. Kh3 Qxb4 $19) 38... Ke8 39. Qc4) 37. b3 {[%emt 0:00:38]} Rf8 {[%emt 0:02:59]} (37... Qd2+ $19 {has better winning chances.} 38. Kf1 Qe3) 38. Rf4 $2 {[%emt 0:00:38][%mdl 8192]} (38. Re4 $17) 38... Qd2+ $19 {[%emt 0:00:30] Black is clearly winning.} (38... Qxb3 39. Rxf8+ Kxf8 40. c8=Q+ Nxc8 41. Qxc8+ Kf7 42. Qf5+ Kg8 43. Qxh5 $11) 39. Kf1 {[%emt 0:01:41]} Qc1+ {[%emt 0:00:07]} ({Less strong is} 39... Qxh2 40. Qc4+ (40. Rxb4 Rxf3+ 41. Ke1 Re3+ 42. Kd1 Qg1+ 43. Kc2 Qf2+) 40... Kh7 41. Rxf8 $18) 40. Kg2 {[%emt 0:00:07]} Rxf4 {[%emt 0:00:22] Weighted Error Value: White=0.37/Black=0.14 (very precise)} ({Not} 40... Qxc7 41. Qe6+ (41. Rxb4 $2 {loses.} Qc2+ 42. Kg1 Qc5+ 43. Kg2 Qxb4 $19) 41... Kh7 42. Rxf8 $18) 0-1